bitfinex-derivatives/quotes_SOLF0:USTF0_20250416
["timestamp","ask_amount","ask_price","bid_price","bid_amount"]
[1744833675846,0.05040609,132.7,132.68,0.05649907]
[1744833676456,52.49948806,132.85,132.69,90.53948806]
[1744833676648,41.2157,132.85,132.75,52.49948806]
[1744833676952,38.04,132.85,132.77,52.49948806]
[1744833677158,38.04,132.85,132.75,52.49948806]
[1744833677342,38.04,132.85,132.77,52.49948806]
[1744833677546,0.04901407,132.81,132.79,0.04944985]
[1744833679156,7.57801407,132.81,132.79,0.04944985]
[1744833679452,0.04901407,132.81,132.79,0.04944985]
[1744833679754,38.08901407,132.81,132.79,0.04944985]
[1744833680257,0.04901407,132.81,132.79,0.04944985]
[1744833680452,38.02,132.86,132.79,52.54893791]
[1744833680646,38.02,132.89,132.81,52.49948806]
[1744833681055,7.5254,132.87,132.83,7.5273]
[1744833681355,38.02,132.89,132.79,52.49948806]
[1744833681555,7.5294,132.8,132.77,4.0234]
[1744833681745,0.05574829,132.8,132.77,4.07209595]
[1744833682761,0.05574829,132.8,132.77,0.04869595]
[1744833683553,67.6344,133.06,132.79,52.49948806]
[1744833683760,41.2826,132.92,132.82,52.49948806]
[1744833684251,7.5246,132.89,132.84,7.5265]
[1744833684452,41.2826,132.92,132.82,52.49948806]
[1744833684647,0.04976256,132.88,132.86,0.05165837]
[1744833685654,7.57456256,132.88,132.86,0.05165837]
[1744833685855,0.04976256,132.88,132.86,0.05165837]
[1744833687663,0.04976256,132.88,132.87,7.5252]
[1744833687857,4.2039,132.95,132.86,0.05165837]
[1744833688157,7.5212,132.95,132.91,7.5229]
[1744833688363,38.0,132.96,132.91,7.5229]
[1744833688559,38.0,132.98,132.91,52.49948806]
[1744833688862,542.3,133.0,132.94,52.49948806]
[1744833688863,0.05698362,132.96,132.94,52.49948806]
[1744833689159,0.05166785,132.96,132.94,0.0505574]
[1744833689357,7.5208,132.95,132.94,0.0505574]
[1744833689866,0.05166785,132.96,132.94,0.0505574]
[1744833690863,594.61948806,133.07,132.95,52.49948806]
[1744833691061,7.5174,133.01,132.95,52.49948806]
[1744833691260,37.98,133.06,132.95,52.49948806]
[1744833691768,37.98,133.05,132.95,52.49948806]
[1744833691966,7.5176,133.01,132.99,0.05063305]
[1744833692167,0.05502496,133.02,132.99,0.05063305]
[1744833693168,37.98,133.01,132.99,0.05063305]
[1744833693364,157.49846418,133.0,132.81,30.11]
[1744833693562,52.49948806,132.82,132.68,52.49948806]
[1744833693757,541.9,132.82,132.71,52.49948806]
[1744833693962,3259.7766,132.99,132.75,52.49948806]
[1744833694164,52.49948806,132.88,132.76,3.9766]
[1744833694360,0.0561804,132.83,132.81,0.05361795]
[1744833694562,52.49948806,132.82,132.73,3.8571]
[1744833694762,37.98,132.81,132.7,94.45608806]
[1744833694962,52.49948806,132.79,132.7,3.9766]
[1744833695162,7.5321,132.75,132.7,3.9766]
[1744833695366,52.49948806,132.79,132.7,3.9766]
[1744833695367,37.98,132.77,132.7,3.9766]
[1744833695566,37.98,132.77,132.72,0.05712678]
[1744833695765,0.05167178,132.75,132.72,0.05712678]
[1744833696466,37.98,132.8,132.72,0.05712678]
[1744833696670,37.98,132.8,132.7,94.45608806]
[1744833696871,90.47948806,132.8,132.7,41.9566]
[1744833697066,90.47948806,132.8,132.7,3.9766]
[1744833697467,0.04820015,132.76,132.74,0.05385426]
[1744833697670,7.532,132.75,132.74,0.05385426]
[1744833697874,0.04820015,132.76,132.74,0.05385426]
[1744833701379,7.532,132.75,132.74,0.05385426]
[1744833701581,52.49948806,132.75,132.7,48.97]
[1744833701773,7.5343,132.71,132.7,18.83]
[1744833701970,38.0,132.72,132.64,4.1978]
[1744833702173,38.0,132.71,132.64,4.1978]
[1744833702376,7.5365,132.68,132.64,4.1978]
[1744833702578,0.05129574,132.69,132.66,0.05175894]
[1744833703078,7.536,132.68,132.66,0.05175894]
[1744833703471,7.5361,132.68,132.66,0.05175894]
[1744833703673,0.05129574,132.69,132.66,0.05175894]
[1744833704079,7.5363,132.68,132.66,0.05175894]
[1744833704277,0.05129574,132.69,132.66,0.05175894]
[1744833704479,542.34,132.81,132.68,52.49948806]
[1744833704669,41.3711,132.78,132.68,52.49948806]
[1744833704983,52.49948806,132.76,132.65,56.32348806]
[1744833705172,93.87058806,132.78,132.67,52.49948806]
[1744833705581,0.05271582,132.74,132.71,0.05043491]
[1744833705769,7.5342,132.72,132.71,0.05043491]
[1744833706880,7.536,132.68,132.67,0.68]
[1744833707182,7.5377,132.65,132.64,18.84]
[1744833707478,37.98,132.68,132.61,30.16]
[1744833707676,0.05769435,132.66,132.63,0.0511694]
[1744833708182,52.55718241,132.66,132.62,36.4]
[1744833708380,52.49948806,132.64,132.48,580.4]
[1744833708580,37.98,132.63,132.53,52.49948806]
[1744833708880,7.5411,132.59,132.53,52.49948806]
[1744833709075,37.98,132.63,132.53,52.49948806]
[1744833709279,0.049455,132.57,132.55,0.05465066]
[1744833709480,0.05450867,132.57,132.55,0.05168263]
[1744833710476,38.0,132.7,132.56,90.49948806]
[1744833710778,7.5351,132.7,132.66,52.49948806]
[1744833711077,542.42,132.74,132.69,52.49948806]
[1744833711276,38.0,132.73,132.67,52.49948806]
[1744833711484,7.5344,132.71,132.7,0.05248835]
[1744833711684,0.0544651,132.72,132.69,0.05620395]
[1744833712087,0.0544651,132.72,132.69,60.09109201]
[1744833712281,0.0544651,132.72,132.69,52.55569201]
[1744833712785,0.0544651,132.72,132.69,60.09089201]
[1744833713377,38.0,132.79,132.71,52.49948806]
[1744833713576,38.0,132.79,132.73,52.49948806]
[1744833713785,7.5315,132.76,132.73,52.49948806]
[1744833713985,38.0,132.79,132.73,52.49948806]
[1744833714381,0.05213685,132.77,132.75,0.04998222]
[1744833715990,7.5314,132.76,132.75,0.04998222]
[1744833716190,0.05213685,132.77,132.75,52.54947028]
[1744833716390,0.05213685,132.77,132.75,0.04998222]
[1744833716584,7.5314,132.76,132.75,0.04998222]
[1744833717788,7.5314,132.76,132.68,18.84]
[1744833717789,7.54,132.76,132.68,18.84]
[1744833717986,52.49948806,132.73,132.68,18.84]
[1744833718185,52.49948806,132.71,132.64,30.15]
[1744833718385,38.0,132.7,132.64,30.15]
[1744833718789,7.5365,132.67,132.66,0.05541638]
[1744833720292,0.05786284,132.68,132.66,52.55490444]
[1744833720590,580.54,132.73,132.66,0.05541638]
[1744833720993,633.03948806,132.73,132.66,0.05541638]
[1744833721491,0.04959412,132.71,132.66,0.05541638]
[1744833721697,0.04959412,132.71,132.66,30.20541638]
[1744833721886,7.5365,132.67,132.66,30.20541638]
[1744833722093,45.5365,132.67,132.66,30.20541638]
[1744833722292,45.5365,132.67,132.59,8.8966]
[1744833722293,90.49948806,132.67,132.59,8.8966]
[1744833722596,90.49948806,132.67,132.59,4.6832]
[1744833722997,38.0,132.67,132.6,52.49948806]
[1744833723498,52.55406,132.65,132.59,0.78]
[1744833723692,595.19406,132.65,132.59,0.78]
[1744833723998,595.19406,132.65,132.6,14.16]
[1744833724206,7.54,132.61,132.6,14.16]
[1744833724401,38.0,132.61,132.55,3.9306]
[1744833724699,7.59492125,132.59,132.57,0.05596329]
[1744833724887,0.05342125,132.59,132.57,0.05596329]
[1744833725399,38.0,132.61,132.57,0.05596329]
[1744833726497,0.05259323,132.6,132.57,0.05596329]
[1744833727800,7.5417,132.58,132.57,0.05596329]
[1744833730198,7.5412,132.59,132.57,0.05596329]
[1744833730400,38.02,132.66,132.58,104.99897612]
[1744833730699,38.02,132.66,132.6,52.49948806]
[1744833730905,38.02,132.66,132.59,3.8671]
[1744833731094,38.02,132.66,132.59,56.36658806]
[1744833731295,38.02,132.66,132.63,7.5385]
[1744833731502,0.05278797,132.64,132.61,52.55630689]
[1744833731696,0.05278797,132.64,132.61,0.05681883]
[1744833733002,7.59128797,132.64,132.61,0.05681883]
[1744833733301,595.47227603,132.64,132.54,4.07]
[1744833733501,7.5403,132.61,132.57,7.5422]
[1744833733808,38.02,132.6,132.54,56.56948806]
[1744833734207,38.02,132.6,132.56,7.5428]
[1744833734409,0.05456749,132.59,132.57,0.05674116]
[1744833734707,7.59596749,132.59,132.57,0.05674116]
[1744833735400,0.05456749,132.59,132.57,0.05674116]
[1744833735603,542.92,132.64,132.57,0.05674116]
[1744833735797,580.94,132.64,132.58,52.49948806]
[1744833735997,7.5393,132.63,132.59,7.5407]
[1744833736405,7.5409,132.6,132.55,56.37928806]
[1744833736603,38.0,132.6,132.55,3.8798]
[1744833736804,0.05616195,132.59,132.56,0.05732963]
[1744833738104,7.59756195,132.59,132.56,7.59982963]
[1744833738306,0.05616195,132.59,132.56,7.59982963]
[1744833738807,7.59756195,132.59,132.56,7.59982963]
[1744833739506,7.59756195,132.59,132.56,0.05732963]
[1744833739708,0.05616195,132.59,132.56,0.05732963]
[1744833740110,7.5417,132.58,132.56,0.05732963]
[1744833741113,7.59736195,132.59,132.56,0.05732963]
[1744833741307,0.05616195,132.59,132.56,0.05732963]
[1744833742008,7.542,132.58,132.56,0.05732963]
[1744833742409,7.542,132.58,132.54,7.5436]
[1744833742410,52.49948806,132.58,132.52,70.0714]
[1744833742708,52.49948806,132.58,132.52,66.21]
[1744833743607,0.05352266,132.56,132.54,0.04967015]
[1744833744011,38.05352266,132.56,132.54,0.04967015]
[1744833744710,0.05352266,132.56,132.54,0.04967015]
[1744833744907,38.0,132.58,132.54,0.04967015]
[1744833745106,38.0,132.58,132.55,7.5433]
[1744833745414,38.0,132.58,132.53,3.8842]
[1744833745807,542.92,132.64,132.54,52.49948806]
[1744833746003,0.05147876,132.6,132.58,52.55022692]
[1744833746305,38.0,132.66,132.6,52.49948806]
[1744833746505,7.5399,132.62,132.59,8.1447]
[1744833746705,38.0,132.62,132.59,4.0877]
[1744833746908,38.0,132.62,132.55,4.057]
[1744833747101,7.5402,132.61,132.57,7.59431234]
[1744833747307,0.04852072,132.6,132.57,7.59431234]
[1744833747611,0.04852072,132.6,132.57,0.05261234]
[1744833748208,0.04852072,132.6,132.57,7.59471234]
[1744833748514,0.04852072,132.6,132.57,0.05261234]
[1744833748811,0.04852072,132.6,132.57,7.59451234]
[1744833749204,0.04852072,132.6,132.57,0.05261234]
[1744833749404,0.04852072,132.6,132.57,7.59431234]
[1744833749602,0.04852072,132.6,132.57,0.05261234]
[1744833750612,0.04852072,132.6,132.58,7.5413]
[1744833750815,0.04852072,132.6,132.57,0.05261234]
[1744833751913,7.5417,132.58,132.57,0.05261234]
[1744833752214,90.49948806,132.58,132.49,8.1662]
[1744833752412,7.5443,132.54,132.51,7.5454]
[1744833752607,45.5443,132.54,132.51,7.5454]
[1744833753111,38.04874643,132.54,132.51,52.54694632]
[1744833753307,0.04874643,132.54,132.51,52.54694632]
[1744833753508,0.04874643,132.54,132.51,0.04745826]
[1744833753713,38.0,132.53,132.51,0.04745826]
[1744833753916,0.04874643,132.54,132.51,0.04745826]
[1744833754311,0.04874643,132.54,132.53,7.5445]
[1744833754911,52.49948806,132.64,132.52,52.49948806]
[1744833755213,581.1,132.63,132.52,52.49948806]
[1744833755407,581.1,132.63,132.5,62.0]
[1744833755614,581.1,132.63,132.54,52.49948806]
[1744833755809,581.1,132.63,132.55,4.0355]
[1744833756021,0.04827277,132.6,132.59,7.5411]
[1744833756216,581.1,132.63,132.58,52.54940224]
[1744833756613,0.2805,132.73,132.58,52.54940224]
[1744833756614,52.49948806,132.7,132.58,52.54940224]
[1744833756814,38.0,132.69,132.58,52.49948806]
[1744833757012,38.0,132.69,132.61,52.49948806]
[1744833757323,0.05241045,132.66,132.64,0.05633095]
[1744833757616,0.05241045,132.66,132.65,7.5377]
[1744833757814,38.0,132.69,132.65,52.49948806]
[1744833758324,169.30113943,132.77,132.67,52.49948806]
[1744833758618,38.0,132.74,132.67,52.49948806]
[1744833758819,0.05277321,132.72,132.7,0.05115499]
[1744833759219,38.0,132.74,132.71,52.49948806]
[1744833759516,543.04,132.77,132.71,52.49948806]
[1744833759722,103.72221804,132.82,132.75,52.49948806]
[1744833759920,38.0,132.81,132.75,52.49948806]
[1744833760122,7.5295,132.8,132.76,7.5313]
[1744833760312,0.04916286,132.79,132.77,0.05745807]
[1744833760518,103.72221804,132.82,132.79,7.5292]
[1744833760817,103.72221804,132.82,132.77,0.05745807]
[1744833761022,37.98,132.81,132.77,0.05745807]
[1744833761223,7.5303,132.78,132.77,0.05745807]
[1744833761619,52.49948806,132.8,132.72,4.1962]
[1744833761826,7.5325,132.75,132.72,4.1962]
[1744833762622,7.5327,132.74,132.72,4.2521539]
[1744833762923,0.05239873,132.75,132.72,0.0559539]
[1744833763419,7.58479873,132.75,132.72,0.0559539]
[1744833764119,7.5327,132.74,132.72,0.0559539]
[1744833764324,0.05239873,132.75,132.72,0.0559539]
[1744833764518,0.05239873,132.75,132.62,52.49948806]
[1744833764519,90.47948806,132.74,132.62,52.49948806]
[1744833764720,90.47948806,132.74,132.63,8.2003]
[1744833765319,37.98,132.74,132.64,52.49948806]
[1744833765523,0.05517088,132.7,132.68,0.05444573]
[1744833766219,37.98,132.74,132.68,0.05444573]
[1744833766524,542.72,132.78,132.7,52.49948806]
[1744833766719,542.72,132.78,132.73,52.49948806]
[1744833767022,37.94,132.79,132.73,52.49948806]
[1744833767324,0.05208445,132.77,132.75,0.05473224]
[1744833767619,52.49948806,132.76,132.58,417.49948806]
[1744833767824,37.92,132.75,132.64,45.969]
[1744833768526,0.05083421,132.72,132.69,0.05500575]
[1744833768729,0.05083421,132.72,132.69,7.59000575]
[1744833769120,0.05083421,132.72,132.69,0.05500575]
[1744833769729,7.58493421,132.72,132.69,0.05500575]
[1744833770125,0.05083421,132.72,132.69,0.05500575]
[1744833770327,7.5343,132.71,132.69,0.05500575]
[1744833770527,37.92,132.71,132.69,0.05500575]
[1744833770925,7.5348,132.7,132.69,0.05500575]
[1744833771125,37.92,132.71,132.69,0.05500575]
[1744833771827,7.5348,132.7,132.69,0.05500575]
[1744833772326,45.4545,132.71,132.69,0.05500575]
[1744833772626,0.05083421,132.72,132.7,7.5348]
[1744833773030,0.05083421,132.72,132.69,0.05500575]
[1744833773426,7.5347,132.71,132.69,0.05500575]
[1744833773632,0.05083421,132.72,132.69,0.05500575]
[1744833773832,52.55032227,132.72,132.69,0.05500575]
[1744833774124,52.55032227,132.72,132.64,8.049]
[1744833774327,52.49948806,132.72,132.6,60.39318806]
[1744833774630,52.49948806,132.72,132.61,3.9375]
[1744833775031,7.5365,132.68,132.61,3.9375]
[1744833775331,37.96781569,132.68,132.65,0.05205647]
[1744833776329,37.96781569,132.68,132.65,7.58965647]
[1744833776530,542.66,132.77,132.66,52.49948806]
[1744833776731,7.5338,132.72,132.66,52.49948806]
[1744833777030,7.5338,132.72,132.67,3.8571]
[1744833777231,7.5333,132.73,132.67,3.8571]
[1744833777526,37.92,132.76,132.67,3.8571]
[1744833777830,0.05071869,132.71,132.69,7.58961342]
[1744833778030,0.05470987,132.71,132.69,0.05451342]
[1744833778934,7.58920987,132.71,132.69,0.05451342]
[1744833779232,0.05470987,132.71,132.69,0.05451342]
[1744833779428,7.58940987,132.71,132.69,0.05451342]
[1744833780135,7.5348,132.7,132.69,0.05451342]
[1744833780433,7.5348,132.7,132.67,41.5336]
[1744833780434,0.05470987,132.71,132.67,30.14]
[1744833780827,7.536,132.68,132.67,30.14]
[1744833781139,7.536,132.68,132.62,52.49948806]
[1744833781333,90.41948806,132.72,132.62,52.49948806]
[1744833781540,0.05082359,132.68,132.66,0.05298958]
[1744833782039,542.66,132.77,132.66,52.55247764]
[1744833782239,37.92,132.75,132.68,52.49948806]
[1744833782940,7.5337,132.72,132.69,7.5351]
[1744833783137,0.05422751,132.72,132.69,7.58417306]
[1744833783439,0.05422751,132.72,132.69,0.04907306]
[1744833783830,0.05422751,132.72,132.7,7.5345]
[1744833784542,0.05422751,132.72,132.69,0.04907306]
[1744833784840,90.41948806,132.71,132.67,29.86]
[1744833785040,90.41948806,132.71,132.61,7.7805]
[1744833785840,0.05170258,132.67,132.65,0.05696288]
[1744833786139,543.97199457,132.77,132.65,0.05696288]
[1744833786140,37.92,132.74,132.65,52.49948806]
[1744833786330,52.49948806,132.73,132.63,52.49948806]
[1744833786535,52.49948806,132.73,132.66,0.8]
[1744833786835,7.536,132.69,132.66,0.8]
[1744833787039,45.50419942,132.69,132.66,0.8479714]
[1744833787235,37.96819942,132.69,132.66,0.8479714]
[1744833787441,7.5365,132.67,132.66,0.8479714]
[1744833788742,52.49948806,132.67,132.6,34.0483]
[1744833789543,0.04856693,132.65,132.62,0.05693042]
[1744833789839,7.5391,132.63,132.62,0.05693042]
[1744833790140,37.94,132.64,132.6,30.16]
[1744833790335,7.54,132.61,132.6,30.16]
[1744833791435,7.5405,132.6,132.59,0.04853253]
[1744833792041,45.4805,132.6,132.59,0.04853253]
[1744833792642,37.94,132.6,132.59,0.04853253]
[1744833792939,37.94,132.67,132.59,60.08802059]
[1744833793140,45.4769,132.67,132.63,7.5383]
[1744833793439,542.7,132.69,132.63,52.49948806]
[1744833793751,542.7,132.69,132.64,7.8525]
[1744833793942,0.05627075,132.68,132.65,0.0551507]
[1744833795741,7.5371,132.66,132.65,0.0551507]
[1744833795941,45.4771,132.66,132.65,0.0551507]
[1744833796142,37.94,132.66,132.6,30.16]
[1744833796344,52.49948806,132.65,132.6,30.16]
[1744833796845,7.54,132.61,132.6,30.1117]
[1744833797044,37.88,132.61,132.6,30.1117]
[1744833797441,37.88,132.61,132.57,36.45]
[1744833797644,90.37948806,132.61,132.57,36.45]
[1744833797946,37.88,132.61,132.57,36.45]
[1744833798343,0.05270018,132.62,132.57,36.45]
[1744833798645,0.05270018,132.62,132.58,0.0515479]
[1744833798646,7.54,132.61,132.58,0.0515479]
[1744833798947,7.5409,132.6,132.58,0.0515479]
[1744833799345,0.05270018,132.62,132.58,0.0515479]
[1744833800046,7.5411,132.59,132.58,0.0515479]
[1744833800247,37.9,132.61,132.58,0.0515479]
[1744833800642,37.9,132.64,132.59,52.49948806]
[1744833800944,37.9,132.66,132.58,4.138]
[1744833801136,7.5384,132.64,132.6,7.5405]
[1744833801339,37.9,132.66,132.58,4.138]
[1744833801743,7.5401,132.61,132.58,4.138]
[1744833801943,7.5401,132.61,132.58,0.0523423]
[1744833802139,37.9,132.62,132.58,0.0523423]
[1744833802645,37.9,132.62,132.58,7.5935423]
[1744833802849,37.9,132.62,132.58,0.0523423]
[1744833804251,7.5404,132.61,132.58,0.0523423]
[1744833804456,37.9,132.62,132.58,0.0523423]
[1744833804848,52.49948806,132.6,132.57,36.45]
[1744833805248,7.5417,132.58,132.57,36.45]
[1744833805547,37.9,132.65,132.57,36.45]
[1744833805746,7.5392,132.63,132.59,7.541]
[1744833806044,0.05226529,132.62,132.6,0.05690234]
[1744833806551,0.05226529,132.62,132.6,7.59740234]
[1744833806748,580.86,132.68,132.6,0.05690234]
[1744833807048,580.86,132.68,132.61,52.49948806]
[1744833807853,0.05025052,132.66,132.63,7.59233275]
[1744833808353,0.05025052,132.66,132.63,0.05383275]
[1744833808755,7.58775052,132.66,132.63,0.05383275]
[1744833809055,0.05025052,132.66,132.63,0.05383275]
[1744833809451,0.05025052,132.66,132.63,7.59253275]
[1744833809651,0.05025052,132.66,132.63,52.55332081]
[1744833809954,0.05025052,132.66,132.63,62.05383275]
[1744833810145,0.05025052,132.66,132.63,69.59233275]
[1744833810348,0.05025052,132.66,132.63,62.05383275]
[1744833810753,0.05025052,132.66,132.63,0.05383275]
[1744833811054,0.05025052,132.66,132.64,7.5379]
[1744833811254,0.05025052,132.66,132.63,0.05383275]
[1744833812556,0.05025052,132.66,132.63,7.59223275]
[1744833812852,0.05025052,132.66,132.63,0.05383275]
[1744833813054,7.5382,132.64,132.63,0.05383275]
[1744833813252,45.4382,132.64,132.63,0.05383275]
[1744833813652,7.5397,132.62,132.6,4.1914]
[1744833813852,7.5397,132.62,132.58,7.5412]
[1744833814156,37.9,132.64,132.57,88.94948806]
[1744833814350,37.9,132.64,132.59,52.49948806]
[1744833814656,7.5392,132.63,132.6,7.5403]
[1744833814955,7.59685851,132.63,132.6,7.58788663]
[1744833815856,7.59685851,132.63,132.6,0.04758663]
[1744833816055,7.54,132.61,132.6,0.04758663]
[1744833816856,7.5422,132.57,132.55,34.2448]
[1744833817056,37.9,132.59,132.55,34.2448]
[1744833817955,0.05256913,132.58,132.56,0.0474656]
[1744833818752,7.5422,132.57,132.56,0.0474656]
[1744833820058,7.5438,132.55,132.51,15.638]
[1744833820558,7.5438,132.55,132.52,7.5449]
[1744833821158,7.59277673,132.55,132.52,7.59497044]
[1744833821760,7.59277673,132.55,132.52,0.05007044]
[1744833822053,37.94897673,132.55,132.52,0.05007044]
[1744833822259,90.44846479,132.55,132.52,0.05007044]
[1744833822449,7.5445,132.53,132.52,0.05007044]
[1744833822651,37.94897673,132.55,132.52,0.05007044]
[1744833822855,45.49267673,132.55,132.52,0.05007044]
[1744833823056,37.94897673,132.55,132.52,0.05007044]
[1744833823463,90.44846479,132.55,132.51,35.41]
[1744833823960,7.5451,132.52,132.51,35.41]
[1744833824356,90.44846479,132.55,132.51,35.41]
[1744833824558,7.5441,132.54,132.52,0.05143809]
[1744833824760,37.94897673,132.55,132.52,0.05143809]
[1744833824959,7.5445,132.53,132.52,0.05143809]
[1744833825962,52.49948806,132.53,132.48,30.19]
[1744833826161,90.39948806,132.55,132.48,30.19]
[1744833826355,52.49948806,132.51,132.4,1.31348016]
[1744833826658,37.88,132.54,132.44,52.49948806]
[1744833826859,7.59652717,132.5,132.48,0.05795911]
[1744833827056,0.04992717,132.5,132.48,0.05795911]
[1744833827560,543.18,132.57,132.48,0.05795911]
[1744833827762,543.18,132.57,132.47,52.49948806]
[1744833828062,7.5439,132.55,132.47,52.49948806]
[1744833828262,543.18,132.57,132.47,52.49948806]
[1744833828461,37.88,132.56,132.47,52.49948806]
[1744833828660,0.04830605,132.53,132.5,0.04906369]
[1744833829061,0.04830605,132.53,132.5,7.59526369]
[1744833830355,7.5455,132.52,132.5,0.04906369]
[1744833830760,0.04830605,132.53,132.5,0.04906369]
[1744833830960,0.04830605,132.53,132.5,7.59486369]
[1744833831168,0.04830605,132.53,132.5,0.04906369]
[1744833831363,543.18,132.57,132.5,0.04906369]
[1744833831558,7.5435,132.55,132.52,7.5447]
[1744833832065,7.5435,132.55,132.47,52.49948806]
[1744833832266,0.05581361,132.52,132.5,0.04786249]
[1744833833662,90.37948806,132.51,132.46,7.9933]
[1744833834466,7.5478,132.48,132.46,7.9933]
[1744833834663,0.05263152,132.48,132.46,8.04197912]
[1744833835164,0.05263152,132.48,132.46,0.04867912]
[1744833835560,7.60033152,132.48,132.46,0.04867912]
[1744833835757,0.05263152,132.48,132.46,0.04867912]
[1744833835959,37.88,132.55,132.46,0.04867912]
[1744833836166,37.88,132.55,132.51,7.5453]
[1744833836565,37.88,132.55,132.48,52.49948806]
[1744833836965,0.05101173,132.53,132.5,0.05454654]
[1744833837167,0.05101173,132.53,132.51,7.5453]
[1744833837464,0.05101173,132.53,132.5,0.05454654]
[1744833837866,0.05101173,132.53,132.51,7.5452]
[1744833838067,52.49948806,132.62,132.5,90.4540346]
[1744833838266,37.9,132.61,132.5,90.39948806]
[1744833838466,7.5416,132.59,132.55,7.543]
[1744833838868,37.9,132.61,132.5,90.39948806]
[1744833839065,0.05535773,132.57,132.54,7.59863203]
[1744833839465,7.59815773,132.57,132.54,0.05503203]
[1744833839864,37.93535773,132.57,132.54,0.05503203]
[1744833840069,7.5434,132.55,132.54,3.203e-05]
[1744833840273,52.49948806,132.56,132.47,4.2285]
[1744833840572,52.49948806,132.51,132.41,402.88]
[1744833840771,37.88,132.52,132.46,4.2285]
[1744833841372,0.0506797,132.5,132.48,0.05636004]
[1744833841567,7.5972797,132.5,132.48,0.05636004]
[1744833841767,0.0506797,132.5,132.48,0.05636004]
[1744833842167,37.88,132.55,132.48,0.05636004]
[1744833842671,7.5449,132.53,132.49,7.5466]
[1744833842871,7.5449,132.53,132.49,69.5466]
[1744833843072,0.05114869,132.52,132.5,0.05180557]
[1744833843267,7.59624869,132.52,132.5,0.05180557]
[1744833843774,0.05114869,132.52,132.5,0.05180557]
[1744833843978,0.05114869,132.52,132.5,7.59800557]
[1744833844577,0.05114869,132.52,132.5,0.05180557]
[1744833845076,37.88,132.55,132.5,0.05180557]
[1744833845273,17.21941,132.62,132.51,52.49948806]
[1744833845274,37.9,132.6,132.51,52.49948806]
[1744833845469,17.21941,132.62,132.53,52.49948806]
[1744833845674,17.21941,132.62,132.55,52.49948806]
[1744833846075,24.75881,132.62,132.55,52.49948806]
[1744833846276,0.05045816,132.6,132.57,0.05347337]
[1744833846675,0.05045816,132.6,132.58,7.5413]
[1744833847177,0.05045816,132.6,132.59,7.5411]
[1744833847476,0.05045816,132.6,132.57,0.05347337]
[1744833847682,0.05045816,132.6,132.58,7.5413]
[1744833847981,0.05045816,132.6,132.57,0.05347337]
[1744833848181,0.05045816,132.6,132.58,7.5412]
[1744833848480,0.05045816,132.6,132.57,0.05347337]
[1744833848885,0.05045816,132.6,132.59,7.5411]
[1744833849079,17.21941,132.62,132.57,0.05347337]
[1744833849484,24.75901,132.62,132.58,7.5413]
[1744833849886,62.63901,132.62,132.58,7.5413]
[1744833850081,0.05239505,132.61,132.59,7.5409]
[1744833850281,0.05239505,132.61,132.57,0.05347337]
[1744833850486,0.05239505,132.61,132.6,7.5405]
[1744833850884,0.05239505,132.61,132.57,0.05347337]
[1744833851084,0.05239505,132.61,132.59,7.5407]
[1744833851286,0.05239505,132.61,132.57,0.05347337]
[1744833851988,0.05239505,132.61,132.6,7.5405]
[1744833852193,52.49948806,132.69,132.58,114.49948806]
[1744833852386,37.88,132.68,132.58,114.49948806]
[1744833852589,7.538,132.65,132.58,114.49948806]
[1744833852992,37.88,132.68,132.58,114.49948806]
[1744833853193,0.05636801,132.64,132.62,0.05400488]
[1744833853492,0.05636801,132.64,132.63,7.5386]
[1744833854192,0.05636801,132.64,132.62,0.05400488]
[1744833854692,0.05636801,132.64,132.62,7.59310488]
[1744833854887,37.93636801,132.64,132.62,0.05400488]
[1744833855592,45.47516801,132.64,132.62,0.05400488]
[1744833855987,37.93636801,132.64,132.62,0.05400488]
[1744833856594,7.5388,132.63,132.62,0.05400488]
[1744833857194,52.49948806,132.63,132.54,37.88]
[1744833857395,37.88,132.64,132.56,52.49948806]
[1744833857691,37.88,132.64,132.62,7.5393]
[1744833857889,37.88,132.64,132.62,69.5393]
[1744833858093,37.88,132.64,132.63,7.5388]
[1744833858286,0.04949748,132.64,132.63,7.5388]
[1744833858491,581.12,132.71,132.62,114.55296778]
[1744833858688,581.12,132.71,132.63,3.9109]